bitfinex/quotes_BTCUSD_20240803
["timestamp","ask_amount","ask_price","bid_price","bid_amount"]
[1722710088209,0.00091301,60364.0,60330.0,0.331505]
[1722710088210,0.47564983,60363.0,60345.0,0.165713]
[1722710088429,0.47564983,60363.0,60342.0,0.1132]
[1722710088430,0.30989894,60362.0,60342.0,0.1132]
[1722710088650,0.24866894,60363.0,60342.0,0.1132]
[1722710088651,0.47564983,60361.0,60342.0,0.1132]
[1722710088857,0.30989894,60360.0,60344.0,0.165715]
[1722710089075,0.00091301,60364.0,60351.0,0.165696]
[1722710089076,0.47564983,60359.0,60351.0,0.165696]
[1722710089283,0.165682,60357.0,60350.0,0.165699]
[1722710089490,0.30989894,60356.0,60349.0,0.331404]
[1722710089706,0.30989894,60355.0,60349.0,0.165701]
[1722710089907,0.30989894,60354.0,60342.0,0.1132]
[1722710090121,0.30989894,60354.0,60320.0,0.02]
[1722710090122,0.82854,60347.0,60333.0,0.1132]
[1722710090354,1.13843894,60347.0,60333.0,0.1132]
[1722710090560,1.13843894,60347.0,60329.0,0.145]
[1722710090561,1.32570689,60347.0,60329.0,0.145]
[1722710090770,0.828677,60337.0,60324.0,0.1132]
[1722710090983,0.828677,60337.0,60317.0,0.145]
[1722710090984,1.96741103,60337.0,60317.0,0.145]
[1722710091416,1.63594003,60337.0,60317.0,0.145]
[1722710091623,0.31004114,60337.0,60324.0,0.331542]
[1722710091839,0.31004114,60337.0,60325.0,0.00157439]
[1722710091840,0.47577614,60337.0,60325.0,0.00157439]
[1722710092107,0.47577614,60337.0,60318.0,0.00331537]
[1722710092108,1.35204664,60337.0,60318.0,0.00157439]
[1722710092310,2.11498864,60337.0,60312.0,0.49750831]
[1722710092517,1.82498504,60337.0,60315.0,0.331591]
[1722710092718,1.82498504,60337.0,60317.0,0.165788]
[1722710092922,1.82498504,60337.0,60319.0,0.165784]
[1722710093149,1.49351404,60337.0,60321.0,0.331557]
[1722710093305,1.49351404,60337.0,60322.0,0.00157439]
[1722710093501,1.40446903,60337.0,60321.0,0.165778]
[1722710093704,1.40446903,60337.0,60322.0,0.00157439]
[1722710093905,1.73597647,60337.0,60319.0,0.00157439]
[1722710094088,1.79324341,60337.0,60314.0,0.00157439]
[1722710094300,1.73597647,60337.0,60314.0,0.00489005]
[1722710094506,1.73597647,60337.0,60315.0,0.00157439]
[1722710094753,1.79324297,60337.0,60314.0,0.00157439]
[1722710094953,2.12471397,60337.0,60314.0,0.00157439]
[1722710095287,2.74263937,60337.0,60314.0,0.00157439]
[1722710096127,2.48421266,60337.0,60314.0,0.00157439]
[1722710096361,1.82510295,60337.0,60316.0,0.08291805]
[1722710096599,1.82510295,60337.0,60317.0,0.00157439]
[1722710096600,1.61083795,60337.0,60317.0,0.00157439]
[1722710096807,1.52171147,60337.0,60317.0,0.00157439]
[1722710097277,1.85318247,60337.0,60317.0,0.00157439]
[1722710097476,1.87619099,60337.0,60314.0,0.00157439]
[1722710098093,1.87619099,60337.0,60318.0,0.331574]
[1722710098094,1.52171999,60337.0,60318.0,0.331574]
[1722710098304,1.52171999,60337.0,60319.0,0.00157439]
[1722710098519,0.66948554,60337.0,60326.0,0.00157439]
[1722710098720,0.17227954,60337.0,60333.0,0.331491]
[1722710098918,0.1209,60353.0,60337.0,0.00157439]
[1722710099123,0.331395,60351.0,60342.0,0.08291805]
[1722710099325,0.331395,60351.0,60338.0,0.331465]
[1722710099326,0.165728,60340.0,60338.0,0.01615259]
[1722710099527,0.497149,60344.0,60343.0,0.01610196]
[1722710099720,0.66938199,60344.0,60343.0,0.01610196]
[1722710099928,0.165725,60341.0,60336.0,0.00083]
[1722710100129,0.49715589,60350.0,60337.0,0.00157439]
[1722710100331,0.17222236,60349.0,60340.0,0.08291805]
[1722710100506,0.17222236,60349.0,60337.0,0.0177371]
[1722710100507,0.17222236,60349.0,60337.0,0.01616271]
[1722710100642,0.165722,60342.0,60341.0,0.01612221]
[1722710100842,0.497206,60337.0,60336.0,0.00083]
[1722710101051,0.331391,60352.0,60343.0,0.165719]
[1722710101443,0.49750831,60359.0,60344.0,0.09900988]
[1722710101648,0.1721973,60358.0,60348.0,0.33141]
[1722710101866,0.00091301,60362.0,60345.0,0.1172]
[1722710101867,0.00091301,60362.0,60353.0,0.1503]
[1722710102054,0.00091301,60362.0,60354.0,0.16575089]
[1722710102198,0.00091301,60362.0,60354.0,0.18174149]
[1722710102396,0.00091301,60362.0,60361.0,0.165669]
[1722710102620,0.02598077,60361.0,60360.0,0.331345]
[1722710102831,0.02598077,60361.0,60360.0,0.61131289]
[1722710103003,0.02598077,60361.0,60360.0,1.43967489]
[1722710103181,0.00091301,60362.0,60361.0,1.159686]
[1722710103388,0.00091301,60362.0,60361.0,1.32543689]
[1722710103620,0.14587199,60383.0,60382.0,0.433112]
[1722710103824,0.14587199,60383.0,60382.0,0.2675]
[1722710104230,0.14587199,60383.0,60382.0,0.1503]
[1722710104878,0.14587199,60383.0,60361.0,0.1401]
[1722710104879,0.44931679,60383.0,60361.0,0.1401]
[1722710105095,0.496992,60363.0,60362.0,0.00157439]
[1722710105291,0.08291805,60364.0,60348.0,0.00157439]
[1722710105292,0.165702,60349.0,60348.0,0.00157439]
[1722710105572,0.497107,60349.0,60348.0,0.4990827]
[1722710105782,0.497107,60349.0,60337.0,0.1219]
[1722710105783,0.331437,60344.0,60337.0,0.1219]
[1722710105999,0.08291805,60355.0,60337.0,0.1219]
[1722710106000,0.331412,60348.0,60338.0,0.00157439]
[1722710106192,0.16575089,60348.0,60338.0,0.00157439]
[1722710106398,0.174,60365.0,60336.0,0.00083]
[1722710106399,0.331292,60370.0,60347.0,0.08291805]
[1722710106596,0.19291805,60386.0,60347.0,0.08291805]
[1722710106597,0.30992278,60369.0,60363.0,0.1401]
[1722710106714,0.49750831,60367.0,60363.0,0.1401]
[1722710106918,0.08291805,60388.0,60363.0,0.1401]
[1722710107198,0.30985851,60384.0,60364.0,0.00157439]
[1722710107377,0.1129,60390.0,60373.0,0.165635]
[1722710107378,0.165613,60382.0,60373.0,0.165635]
[1722710107575,0.165613,60382.0,60374.0,0.00157439]
[1722710107576,0.13771489,60381.0,60374.0,0.00157439]
[1722710107776,0.331201,60387.0,60373.0,0.00157439]
[1722710107995,0.13769154,60384.0,60372.0,0.00157439]
[1722710108173,0.165609,60383.0,60374.0,0.165632]
[1722710108387,0.123174,60398.0,60372.0,0.00157439]
[1722710108388,0.454315,60398.0,60372.0,0.00157439]
[1722710108553,0.828182,60373.0,60372.0,0.00157439]
[1722710108750,0.16575089,60382.0,60364.0,0.00157439]
[1722710108949,0.16575089,60382.0,60365.0,0.01587928]
[1722710108950,0.30984686,60381.0,60365.0,0.01587928]
[1722710109157,0.496959,60367.0,60366.0,0.00157439]
[1722710109357,0.496959,60367.0,60353.0,0.1219]
[1722710109358,0.496984,60364.0,60353.0,0.1219]
[1722710109561,0.165657,60366.0,60353.0,0.1219]
[1722710109767,0.331269,60374.0,60364.0,0.00157439]
[1722710110027,0.165658,60365.0,60364.0,0.00157439]
[1722710110177,0.497058,60355.0,60354.0,0.00157439]
[1722710110377,0.165722,60342.0,60341.0,0.1401]
[1722710110555,0.49712289,60355.0,60335.0,0.1219]
[1722710110556,0.165735,60337.0,60335.0,0.1219]
[1722710110755,0.165735,60337.0,60329.0,0.1401]
[1722710110756,0.497206,60337.0,60329.0,0.1401]
[1722710111245,0.99442789,60337.0,60329.0,0.1401]
[1722710111399,1.32589889,60337.0,60329.0,0.1401]
[1722710111607,1.4636961,60337.0,60329.0,0.1401]
[1722710112015,0.30353221,60337.0,60329.0,0.1401]
[1722710112240,0.331445,60342.0,60329.0,0.1401]
[1722710112441,0.1129,60357.0,60329.0,0.1401]
[1722710112442,0.1129,60357.0,60337.0,0.08291805]
[1722710112641,0.331373,60355.0,60337.0,0.08449244]
[1722710112886,0.331373,60355.0,60339.0,0.331459]
[1722710112887,0.331385,60353.0,60339.0,0.331459]
[1722710113108,0.82880231,60370.0,60344.0,0.08291805]
[1722710113342,0.82880231,60370.0,60350.0,0.3314]
[1722710113343,0.02598896,60351.0,60350.0,0.3314]
[1722710113513,0.16575089,60366.0,60346.0,0.22301805]
[1722710113719,0.165687,60355.0,60347.0,0.00157439]
[1722710113882,0.02598325,60351.0,60347.0,0.00157439]
[1722710114082,0.16575089,60366.0,60347.0,0.00157439]
[1722710114279,0.30994306,60365.0,60347.0,0.00157439]
[1722710114478,0.165705,60348.0,60347.0,0.00157439]
[1722710114735,0.1657,60350.0,60346.0,0.1401]
[1722710114917,0.08291805,60367.0,60346.0,0.1401]
[1722710114918,0.165657,60366.0,60347.0,0.24866894]
[1722710115278,0.12178688,60376.0,60347.0,0.24866894]
[1722710115279,0.331257,60376.0,60359.0,0.331347]
[1722710115430,0.16564,60372.0,60361.0,0.331339]
[1722710115592,0.165626,60377.0,60368.0,0.165649]
[1722710115800,0.331227,60382.0,60362.0,0.08291805]
[1722710116008,0.13770513,60381.0,60364.0,0.262]
[1722710116212,0.1129,60390.0,60369.0,0.08291805]
[1722710116414,0.331194,60388.0,60370.0,0.16575089]
[1722710116686,0.331183,60390.0,60370.0,0.16575089]
[1722710116811,0.331183,60390.0,60371.0,0.00157439]
[1722710116812,0.02597431,60382.0,60371.0,0.00157439]
[1722710117021,0.02597431,60382.0,60378.0,0.165621]
[1722710117328,0.165601,60386.0,60377.0,0.165625]
[1722710117519,0.165606,60384.0,60375.0,0.165629]
[1722710117718,0.010274,60398.0,60376.0,0.16575089]
[1722710117920,0.165585,60392.0,60382.0,0.165612]
[1722710118135,0.165588,60391.0,60380.0,0.331233]
[1722710118335,0.165593,60389.0,60376.0,0.16575089]
[1722710118476,0.331206,60386.0,60357.0,0.002]
[1722710118705,0.165594,60389.0,60369.0,0.16575089]
[1722710118904,0.010274,60398.0,60370.0,0.00157439]
[1722710118905,0.331144,60397.0,60370.0,0.00157439]
[1722710119164,0.331144,60397.0,60381.0,0.165613]
[1722710119165,0.165591,60390.0,60381.0,0.165613]
[1722710119363,0.331161,60394.0,60384.0,0.165606]
[1722710119486,0.331161,60394.0,60382.0,0.16575089]
[1722710120188,0.165585,60392.0,60383.0,0.165607]
[1722710120327,0.331155,60395.0,60382.0,0.16575089]
[1722710120673,0.03624425,60385.0,60383.0,0.165608]
[1722710120895,0.010274,60385.0,60384.0,0.496819]
[1722710121121,0.010274,60385.0,60384.0,0.30555089]
[1722710121531,0.010274,60385.0,60384.0,0.47115689]
[1722710121734,0.010274,60385.0,60384.0,0.80236989]
[1722710121908,0.010274,60385.0,60384.0,0.47115689]
[1722710122138,0.010274,60385.0,60384.0,0.30555089]
[1722710122553,0.165613,60382.0,60374.0,0.1398]
[1722710122732,0.010274,60385.0,60375.0,0.16575089]
[1722710122883,0.010274,60385.0,60384.0,0.496819]
[1722710123093,0.010274,60385.0,60384.0,0.66256989]
[1722710123286,0.010274,60385.0,60384.0,1.11408289]
[1722710123636,0.010274,60385.0,60384.0,1.44529589]
[1722710123815,0.010274,60385.0,60384.0,1.77650889]
[1722710124013,0.010274,60385.0,60384.0,1.58609589]
[1722710124359,0.01026301,60413.0,60384.0,1.58609589]
[1722710124360,0.01026301,60413.0,60393.0,0.471964]
[1722710124517,0.49750831,60409.0,60398.0,0.16575089]
[1722710124754,0.01026301,60413.0,60402.0,0.331112]
[1722710124917,0.01026301,60413.0,60403.0,0.16575089]
[1722710125288,0.01026301,60413.0,60412.0,0.33106]
[1722710125499,0.01026301,60413.0,60412.0,0.99340089]
[1722710125692,0.01026301,60413.0,60412.0,0.67774501]
[1722710125845,0.01026301,60413.0,60412.0,1.00880501]
[1722710126292,0.01026301,60413.0,60412.0,1.59426501]
[1722710126553,0.01026301,60413.0,60412.0,1.26320501]
[1722710126698,0.01026301,60413.0,60412.0,0.43555501]
[1722710126903,0.50684401,60413.0,60412.0,0.01540412]
[1722710127137,0.83789801,60413.0,60412.0,0.01540412]
[1722710127372,0.83789801,60413.0,60401.0,0.1408]
[1722710127373,0.01026301,60413.0,60401.0,0.1408]
[1722710127522,0.08291805,60405.0,60402.0,0.01550516]
[1722710127723,0.165554,60403.0,60402.0,0.01550516]
[1722710127998,0.08291805,60412.0,60393.0,0.1136]
[1722710128262,0.08291805,60405.0,60394.0,0.18291129]
[1722710128410,0.08291805,60405.0,60394.0,0.0171604]
[1722710128608,0.165572,60397.0,60394.0,0.0171604]
[1722710128768,0.331104,60404.0,60394.0,0.01558601]
[1722710128973,0.01026301,60413.0,60400.0,0.33112]
[1722710129171,0.01026301,60413.0,60409.0,0.331075]
[1722710129542,0.01026301,60413.0,60410.0,0.01542433]
[1722710129843,0.01026301,60413.0,60412.0,0.16553]
[1722710130070,0.01026301,60413.0,60412.0,0.49659]
[1722710130263,0.01026301,60413.0,60412.0,0.84305412]
[1722710130453,0.01026301,60413.0,60412.0,1.48066501]
[1722710130669,0.01026301,60413.0,60412.0,1.14960501]
[1722710131420,0.01026301,60413.0,60412.0,1.14192084]
[1722710132264,0.01026301,60413.0,60412.0,0.31427084]
[1722710132464,0.01026301,60413.0,60412.0,0.47980084]
[1722710132677,0.01026301,60413.0,60412.0,0.81086084]
[1722710133039,0.01026301,60413.0,60412.0,0.47980084]
[1722710133225,0.01026301,60413.0,60412.0,0.81086084]
[1722710133450,0.01026301,60413.0,60412.0,1.14192084]
[1722710133805,0.01026301,60413.0,60412.0,0.31427084]
[1722710133947,0.01026301,60413.0,60412.0,0.14851995]
[1722710134154,0.01026301,60413.0,60412.0,0.00771995]
[1722710134401,0.01026301,60413.0,60408.0,0.16554]
[1722710134547,0.01026301,60413.0,60411.0,0.165531]
[1722710134756,0.01026301,60413.0,60412.0,0.00771995]
[1722710135055,0.01026301,60413.0,60408.0,0.331081]
[1722710135268,0.01026301,60413.0,60412.0,0.00771995]
[1722710135475,0.01026301,60413.0,60412.0,0.49659]
[1722710135664,0.01026301,60413.0,60412.0,0.50430995]
[1722710135846,0.01026301,60413.0,60412.0,0.83536995]
[1722710136300,0.01026301,60413.0,60412.0,0.00771995]
[1722710136301,0.03621941,60413.0,60412.0,0.00771995]
[1722710136693,0.03621941,60413.0,60412.0,0.16553]
[1722710136817,0.03621941,60413.0,60412.0,0.49659]
[1722710137014,0.03621941,60413.0,60412.0,1.33218084]
[1722710137640,0.01026301,60413.0,60412.0,1.33218084]
[1722710140179,0.01026301,60413.0,60412.0,1.00112084]
[1722710140380,0.01026301,60413.0,60412.0,0.00739828]
[1722710140381,1.0036489,60413.0,60412.0,0.00739828]
[1722710140606,1.0036489,60413.0,60400.0,4e-05]
[1722710140607,0.49668,60401.0,60400.0,4e-05]
[1722710140815,0.80001644,60401.0,60400.0,4e-05]
[1722710141037,0.80001644,60401.0,60364.0,0.01]
[1722710141038,0.165632,60375.0,60365.0,0.49697]
[1722710141258,0.74971356,60401.0,60360.0,0.1211]
[1722710141259,0.08291805,60381.0,60367.0,0.331305]
[1722710141482,0.08291805,60388.0,60360.0,0.2746]
[1722710141483,0.38635149,60380.0,60369.0,0.00750971]
[1722710141705,0.38635149,60380.0,60360.0,0.1535]
[1722710141706,0.1166,60377.0,60360.0,0.1535]
[1722710141909,0.13768255,60376.0,60364.0,0.49750831]
[1722710142119,0.13768255,60376.0,60365.0,0.00752008]
[1722710142331,0.13768255,60376.0,60368.0,0.165649]
[1722710142553,0.13768255,60375.0,60369.0,0.00750971]
[1722710142785,0.1166,60384.0,60360.0,0.16575089]
[1722710142786,0.13768255,60374.0,60360.0,0.16575089]
[1722710143022,0.1166,60384.0,60364.0,0.16575089]
[1722710143213,0.1166,60384.0,60365.0,0.09043813]
[1722710143214,0.1376882,60383.0,60365.0,0.09043813]
[1722710143423,0.1376882,60383.0,60366.0,0.16575089]
[1722710143673,0.1376882,60382.0,60367.0,0.0075149]
[1722710143875,0.1166,60392.0,60380.0,0.496852]
[1722710143876,0.1376882,60381.0,60380.0,0.496852]
[1722710144109,0.1376882,60391.0,60380.0,0.49698589]
[1722710144317,0.13766084,60390.0,60389.0,0.496779]
[1722710144602,0.13765117,60390.0,60389.0,0.00745786]
[1722710144844,0.331164,60393.0,60382.0,0.00157439]
[1722710145066,0.13765117,60392.0,60377.0,0.00157439]
[1722710145269,0.13765117,60391.0,60376.0,0.00157439]
[1722710145380,0.13765117,60390.0,60378.0,0.00906076]
[1722710145582,0.13765117,60389.0,60378.0,0.00748637]
[1722710145781,0.13765117,60389.0,60354.0,0.002]
[1722710145782,0.41415805,60379.0,60354.0,0.04729383]
[1722710145983,0.41415805,60379.0,60365.0,0.49750831]
[1722710145984,0.14027623,60372.0,60365.0,0.49750831]
[1722710146188,0.2757,60381.0,60366.0,0.00751749]
[1722710146189,0.19500935,60371.0,60366.0,0.00751749]
[1722710146385,0.19500935,60371.0,60349.0,0.49750831]
[1722710146386,0.13765117,60370.0,60353.0,0.331383]
[1722710146650,0.13765117,60369.0,60368.0,0.16565]
[1722710146819,0.13765117,60369.0,60354.0,0.00754862]
[1722710146820,0.13765117,60376.0,60360.0,0.331344]
[1722710146995,0.33124,60380.0,60361.0,0.00753046]
[1722710146996,0.13765117,60375.0,60361.0,0.00753046]
[1722710147192,0.13765117,60374.0,60354.0,0.331377]
[1722710147398,0.13765117,60374.0,60350.0,4e-05]
[1722710147399,0.331285,60371.0,60359.0,0.165673]
[1722710147614,0.13765117,60370.0,60360.0,0.17328394]
[1722710147836,0.13765117,60369.0,60360.0,0.17328394]
[1722710148048,0.13765117,60368.0,60361.0,0.00157439]
[1722710148271,0.165648,60369.0,60361.0,0.00157439]
[1722710148272,0.13765117,60367.0,60361.0,0.16732528]
[1722710148498,0.13765117,60366.0,60362.0,0.00752787]
[1722710148698,0.165664,60363.0,60362.0,0.00752787]
[1722710148935,0.165664,60363.0,60354.0,0.00157439]
[1722710148936,0.46898017,60363.0,60354.0,0.00157439]
[1722710149159,0.13765117,60362.0,60352.0,0.165693]
[1722710149389,0.13765117,60361.0,60355.0,0.00754602]
[1722710149645,0.165697,60351.0,60340.0,0.41436905]
[1722710149805,0.30344063,60351.0,60346.0,0.00083]
[1722710150026,0.497091,60351.0,60346.0,0.00083]
[1722710150212,1.13198457,60351.0,60346.0,0.00083]
[1722710150407,1.46337857,60351.0,60346.0,0.00083]
[1722710150639,1.13198457,60351.0,60346.0,0.00083]
[1722710150847,0.63483968,60351.0,60346.0,0.00083]
[1722710151054,0.13774868,60351.0,60346.0,0.00083]
[1722710151672,0.14706868,60361.0,60350.0,0.007599]
[1722710151875,0.23774868,60360.0,60350.0,4e-05]
[1722710152080,0.13774868,60359.0,60350.0,4e-05]
[1722710152228,0.485035,60362.0,60350.0,4e-05]
[1722710152229,0.331361,60357.0,60350.0,4e-05]
[1722710152433,0.13774868,60356.0,60351.0,0.0075564]
[1722710152663,0.331335,60362.0,60350.0,4e-05]
[1722710152664,0.16569,60354.0,60350.0,4e-05]
[1722710152868,0.02598466,60357.0,60351.0,0.08291805]
[1722710153089,0.02598466,60357.0,60356.0,0.49705]
[1722710153226,0.02598466,60357.0,60356.0,0.99416789]
[1722710153430,0.02598466,60357.0,60356.0,0.00754343]
[1722710153634,0.497091,60351.0,60350.0,4e-05]
[1722710153835,0.02598466,60357.0,60350.0,4e-05]
[1722710154074,0.13774145,60356.0,60350.0,0.007599]
[1722710154239,0.02598466,60357.0,60356.0,0.165683]
[1722710154446,0.02598466,60357.0,60356.0,0.65745]
[1722710154654,0.02598466,60357.0,60356.0,0.99636043]
[1722710155175,0.122,60381.0,60356.0,0.16794343]
[1722710155384,0.02597827,60366.0,60365.0,0.496975]
[1722710155560,0.02597827,60366.0,60365.0,0.66272589]
[1722710155829,0.122,60381.0,60365.0,0.17327097]
[1722710156032,0.02597608,60366.0,60365.0,0.17317808]
[1722710156246,0.02597608,60366.0,60365.0,1.16712908]
[1722710156515,0.122,60390.0,60365.0,0.00952008]
[1722710156724,0.122,60390.0,60365.0,1.49844608]
[1722710156725,0.02597469,60366.0,60365.0,1.49844608]
[1722710156923,0.165595,60388.0,60378.0,0.331243]
[1722710157098,0.49750831,60384.0,60378.0,0.165622]
[1722710157347,0.00091301,60400.0,60360.0,0.08291805]
[1722710157348,0.1537,60396.0,60381.0,0.331228]
[1722710157551,0.02597185,60386.0,60385.0,0.165604]
[1722710157770,0.331154,60395.0,60382.0,0.16575089]
[1722710157992,0.13766421,60394.0,60385.0,0.00746823]
[1722710158224,0.122,60397.0,60383.0,0.165608]
[1722710158442,0.02596922,60392.0,60386.0,0.00746564]
[1722710158646,0.02596922,60392.0,60390.0,0.165588]
[1722710158870,0.02596922,60392.0,60387.0,0.00746305]
[1722710159271,0.02596922,60392.0,60385.0,0.165603]
[1722710159418,0.02596922,60392.0,60388.0,0.00746045]
[1722710159624,0.02596922,60392.0,60383.0,0.16575089]
[1722710159823,0.02596922,60392.0,60385.0,0.331205]
[1722710160026,0.02596922,60392.0,60386.0,0.00904003]
[1722710160207,0.165598,60387.0,60386.0,0.00746564]
[1722710160628,0.41410605,60389.0,60369.0,0.2735]
[1722710160629,0.08291805,60389.0,60369.0,0.2735]
[1722710160835,0.496795,60387.0,60386.0,0.00746564]
[1722710161052,0.331225,60382.0,60369.0,0.16575089]
[1722710161257,0.08291805,60373.0,60360.0,0.1478]
[1722710161473,0.165654,60367.0,60361.0,0.00157439]
[1722710161713,0.1234,60379.0,60351.0,0.1257]
[1722710161934,0.331383,60353.0,60352.0,0.00157439]
[1722710162137,0.165673,60360.0,60350.0,4e-05]
[1722710162344,0.1,60374.0,60350.0,0.16579089]
[1722710162561,0.08291805,60352.0,60350.0,4e-05]
[1722710162803,0.497091,60351.0,60350.0,4e-05]
[1722710163009,0.828485,60351.0,60350.0,4e-05]
[1722710163208,1.159879,60351.0,60350.0,4e-05]
[1722710163412,1.46339284,60351.0,60350.0,4e-05]
[1722710163612,1.13199884,60351.0,60350.0,4e-05]
[1722710163933,1.46339284,60351.0,60350.0,4e-05]
[1722710164119,1.46339284,60351.0,60346.0,0.00083]
[1722710164120,0.828512,60349.0,60346.0,0.00083]
[1722710164373,0.96627495,60349.0,60346.0,0.00083]
[1722710164554,1.29767995,60349.0,60346.0,0.00083]
[1722710164775,0.96627495,60349.0,60346.0,0.00083]
[1722710165115,0.30346495,60349.0,60346.0,0.00083]
[1722710165309,0.96627931,60349.0,60346.0,0.00083]
[1722710165724,1.29768431,60349.0,60346.0,0.00083]
[1722710165924,0.63487431,60349.0,60346.0,0.00083]
[1722710166336,0.497107,60349.0,60346.0,0.00083]
[1722710166559,0.96627485,60349.0,60346.0,0.00083]
[1722710166758,0.63486985,60349.0,60346.0,0.00083]
[1722710167148,0.02598848,60351.0,60346.0,0.00083]
[1722710167572,0.497107,60349.0,60346.0,0.00083]
[1722710168092,1.13201848,60349.0,60346.0,0.00083]
[1722710168307,0.96626759,60349.0,60346.0,0.00083]
[1722710168535,1.13201848,60349.0,60346.0,0.00083]
[1722710168766,1.56343657,60349.0,60346.0,0.00083]
[1722710168982,1.5634451,60349.0,60346.0,0.00083]
[1722710169201,1.56344413,60349.0,60346.0,0.00083]
[1722710170105,1.39769324,60349.0,60346.0,0.00083]
[1722710170314,0.13777624,60349.0,60346.0,0.00083]
[1722710170524,0.13777624,60356.0,60346.0,0.00083]
[1722710170742,0.13777624,60356.0,60349.0,0.00157439]
[1722710170955,0.49750831,60361.0,60349.0,0.00756159]
[1722710170956,1.1599,60350.0,60349.0,0.00756159]
[1722710171156,1.1599,60350.0,60346.0,0.00083]
[1722710171157,0.497107,60349.0,60346.0,0.00083]
[1722710171357,1.44686789,60349.0,60346.0,0.00083]
[1722710171565,2.13836468,60349.0,60346.0,0.00083]
[1722710171772,2.05087289,60349.0,60346.0,0.00083]
[1722710171990,2.05087289,60349.0,60336.0,0.00083]
[1722710171991,1.281348,60337.0,60336.0,0.00083]
[1722710172193,1.281348,60337.0,60325.0,0.00932]
[1722710172194,0.497298,60326.0,60325.0,0.00932]
[1722710172420,1.32611289,60326.0,60325.0,0.00932]
[1722710172626,2.03844489,60326.0,60325.0,0.00932]
[1722710172826,1.160533,60317.0,60304.0,0.00932]
[1722710173047,1.42628389,60317.0,60304.0,0.00932]
[1722710173254,1.42628389,60317.0,60304.0,0.340971]
[1722710173255,0.99470289,60317.0,60304.0,0.340971]
[1722710173457,0.497371,60317.0,60307.0,0.165816]
[1722710173659,0.331567,60320.0,60309.0,0.16581]
[1722710173875,0.1212,60326.0,60317.0,0.08291805]
[1722710174059,0.1496,60336.0,60324.0,0.08291805]
[1722710174060,0.05722701,60328.0,60324.0,0.08291805]
[1722710174295,0.05722701,60328.0,60325.0,0.00157439]
[1722710174508,0.05722701,60328.0,60319.0,0.00157439]
[1722710174709,0.165757,60329.0,60320.0,0.331563]
[1722710174938,0.1212,60334.0,60321.0,0.00157439]
[1722710175151,0.1378098,60327.0,60320.0,0.00752235]
[1722710175353,0.1378098,60327.0,60321.0,0.00157439]
[1722710175479,0.1378098,60327.0,60321.0,0.00751976]
[1722710175703,0.1378098,60327.0,60315.0,0.08449244]
[1722710176064,0.1378098,60327.0,60325.0,0.08291805]
[1722710176265,0.1378098,60327.0,60317.0,0.00910454]
[1722710176266,0.1378098,60327.0,60326.0,0.00157439]
[1722710176484,0.1378098,60327.0,60326.0,0.165766]
[1722710176680,0.1378098,60327.0,60326.0,0.00750677]
[1722710176889,0.6350988,60327.0,60326.0,0.00750677]
[1722710177059,0.16380173,60327.0,60305.0,0.00357439]
[1722710177381,0.02599193,60327.0,60326.0,0.00750677]
[1722710177592,0.04766645,60348.0,60343.0,0.2851]
[1722710177817,0.49750831,60365.0,60364.0,0.331323]
[1722710178092,0.49750831,60365.0,60347.0,0.08291805]
[1722710178093,0.49750831,60365.0,60348.0,0.331411]
[1722710178303,0.1212,60380.0,60364.0,0.00740815]
[1722710178515,0.1212,60380.0,60358.0,0.331356]
[1722710178516,0.165644,60371.0,60358.0,0.331356]
[1722710178734,0.1212,60380.0,60347.0,0.08291805]
[1722710178735,0.30336081,60370.0,60365.0,0.00740556]
[1722710178967,0.3034657,60369.0,60343.0,0.2851]
[1722710179178,0.828265,60367.0,60366.0,0.00740296]
[1722710179437,0.13771481,60367.0,60366.0,0.446156]
[1722710179644,0.49750831,60383.0,60366.0,0.2805]
[1722710179844,0.13768132,60382.0,60369.0,0.08291805]
[1722710180049,0.17143099,60398.0,60369.0,0.08291805]
[1722710180050,0.13768132,60381.0,60380.0,0.331235]
[1722710180276,0.45654201,60400.0,60370.0,0.17314348]
[1722710180277,0.20833106,60400.0,60370.0,0.17314348]
[1722710180489,0.331167,60393.0,60380.0,0.00736666]
[1722710180743,0.30342477,60399.0,60385.0,0.165602]
[1722710180744,0.13767388,60392.0,60385.0,0.165602]
[1722710180961,0.26539018,60400.0,60388.0,0.1528]
[1722710180962,0.00070197,60400.0,60388.0,0.1528]
[1722710181167,0.00070197,60400.0,60398.0,0.165568]
[1722710181168,0.13764258,60399.0,60398.0,0.165568]
[1722710181377,0.00070197,60400.0,60399.0,0.496696]
[1722710181602,0.00070197,60400.0,60396.0,0.331143]
[1722710181805,0.00070197,60400.0,60389.0,0.30079422]
[1722710181806,0.00070197,60400.0,60399.0,0.83514442]
[1722710182012,0.00070197,60400.0,60399.0,1.00089531]
[1722710182447,0.00070197,60400.0,60399.0,0.66976431]
[1722710182881,0.00070197,60400.0,60399.0,1.00089531]
[1722710183331,0.00070197,60400.0,60399.0,1.33202631]
[1722710183537,0.00070197,60400.0,60399.0,1.00089531]
[1722710184177,0.00070197,60400.0,60399.0,0.17306831]
[1722710184384,0.00070197,60400.0,60399.0,0.17288242]
[1722710184605,0.00070197,60400.0,60399.0,0.00731742]
[1722710184883,1.0854617,60400.0,60399.0,0.00731742]
[1722710185094,0.25765054,60400.0,60399.0,0.00731742]
[1722710185297,0.331143,60397.0,60386.0,0.1656]
[1722710185536,0.331143,60397.0,60386.0,0.49750831]
[1722710185537,0.165571,60397.0,60386.0,0.49750831]
[1722710185786,0.165576,60395.0,60387.0,0.00892291]
[1722710186005,0.165595,60388.0,60387.0,0.00734852]
[1722710186217,0.99372789,60388.0,60387.0,0.00734852]
[1722710186419,0.331214,60384.0,60372.0,0.331277]
[1722710186622,0.331214,60384.0,60368.0,0.49750831]
[1722710186822,0.165615,60381.0,60370.0,0.331289]
[1722710187053,0.165616,60381.0,60373.0,0.165635]
[1722710187235,0.165601,60386.0,60375.0,0.331261]
[1722710187486,0.165588,60391.0,60376.0,0.00331235]
[1722710187686,0.13767371,60390.0,60384.0,0.165606]
[1722710187889,0.331144,60397.0,60377.0,0.16575089]
[1722710187890,0.331144,60397.0,60387.0,0.165597]
[1722710188091,0.165582,60393.0,60384.0,0.165605]
[1722710188302,0.165582,60393.0,60366.0,0.164]
[1722710188303,0.1193,60407.0,60385.0,0.16906274]
[1722710188503,0.147,60415.0,60386.0,0.28167439]
[1722710188784,0.331083,60408.0,60394.0,0.331157]
[1722710189033,0.49750831,60412.0,60395.0,0.16732528]
[1722710189299,0.49750831,60412.0,60399.0,0.496696]